{"text_format":"3","workbook":"xlsx","n_sheets":2,"sheets":["Darbuotojų tvarkaraštis","Sąranka"],"not_rendered":{"defined_names":21},"read":"whole","date_system":"1900"}

{"sheet":"Darbuotojų tvarkaraštis","index":0,"n_rows":296,"n_cols":21,"rows_kept":296,"merged":[[6,1,6,9],[66,1,66,9],[126,1,126,9],[186,1,186,9],[246,1,246,9]]}
["Darbuotojų pamainų tvarkaraštis"]
[]
[null,"IŠ VISO",null,{"$f":"SUM(4:4)","v":{"v":56,"d":"56.00"}}]
[null,"VALANDŲ:",null,{"$f":"DarbuotojoDienosValandųSuma","v":8},8,8,8,8,8,8,{"v":0,"d":"0.00"},{"v":0,"d":"0.00"},{"v":0,"d":"0.00"},{"v":0,"d":"0.00"},{"v":0,"d":"0.00"},{"v":0,"d":"0.00"},{"v":0,"d":"0.00"},{"v":0,"d":"0.00"},{"v":0,"d":"0.00"},{"v":0,"d":"0.00"},{"v":0,"d":"0.00"}]
[null,"DARBUOTOJAS:",null,"Legota, A.","Alekna A.","Noreika G.","Alekna A.","Kanteris, T.","Dūda D.","Budrys J."]
[]
[null,"2012-07-16T09:00:00"]
[null,{"$f":"B7","v":41106.375},{"$nulls":5},"Atostogos"]
[null,{"$f":"LaikotarpiųRodymas","v":":15"},null,"Registratūra",{"$nulls":3},"Atostogos"]
[null,":30",null,"Registratūra",{"$nulls":3},"Atostogos"]
[null,":45",null,"Registratūra","Prižiūrėtojas",null,"Klientų aptarnavimas","Atostogos"]
[null,"10:00",null,"Registratūra","Prižiūrėtojas",null,"Klientų aptarnavimas","Atostogos"]
[null,":15",null,"Registratūra","Prižiūrėtojas",null,"Klientų aptarnavimas","Atostogos"]
[null,":30",null,"Registratūra","Prižiūrėtojas",null,"Klientų aptarnavimas","Atostogos","Apskaita"]
[null,":45",null,"Registratūra","Prižiūrėtojas",null,"Klientų aptarnavimas","Atostogos","Apskaita","Sargas"]
[null,"11:00",null,"Registratūra","Prižiūrėtojas",null,"Klientų aptarnavimas","Atostogos","Apskaita","Sargas"]
[null,":15",null,"Registratūra","Prižiūrėtojas","Vadovas","Klientų aptarnavimas","Atostogos","Apskaita","Sargas"]
[null,":30",null,"Registratūra","Pertrauka","Vadovas","Klientų aptarnavimas","Atostogos","Apskaita","Sargas"]
[null,":45",null,"Pietūs","Prižiūrėtojas","Vadovas","Klientų aptarnavimas","Atostogos","Apskaita","Sargas"]
[null,"12:00",null,"Pietūs","Prižiūrėtojas","Vadovas","Klientų aptarnavimas","Atostogos","Apskaita","Sargas"]
[null,":15",null,"Registratūra","Prižiūrėtojas","Vadovas","Klientų aptarnavimas","Atostogos","Pertrauka","Sargas"]
[null,":30",null,"Registratūra","Prižiūrėtojas","Pertrauka","Klientų aptarnavimas","Atostogos","Telefonai","Pertrauka"]
[null,":45",null,"Registratūra","Prižiūrėtojas","Vadovas","Klientų aptarnavimas","Atostogos","Telefonai","Sargas"]
[null,"13:00",null,"Registratūra","Prižiūrėtojas","Vadovas","Klientų aptarnavimas","Atostogos","Telefonai","Sargas"]
[null,":15",null,"Registratūra","Prižiūrėtojas","Vadovas","Pietūs","Atostogos","Telefonai","Sargas"]
[null,":30",null,null,"Prižiūrėtojas","Vadovas","Pietūs","Atostogos","Telefonai","Sargas"]
[null,":45",null,null,"Prižiūrėtojas","Vadovas","Pietūs","Atostogos","Pietūs","Sargas"]
[null,"14:00",null,"Kasininkas","Pietūs","Vadovas","Pietūs","Atostogos","Pietūs","Sargas"]
[null,":15",null,"Kasininkas","Pietūs","Vadovas","Klientų aptarnavimas","Atostogos","Telefonai","Sargas"]
[null,":30",null,"Kasininkas","Pietūs","Pietūs","Klientų aptarnavimas","Atostogos","Telefonai","Pietūs"]
[null,":45",null,"Kasininkas","Pietūs","Pietūs","Klientų aptarnavimas","Atostogos","Telefonai","Pietūs"]
[null,"15:00",null,"Kasininkas","Apsauga","Pietūs","Klientų aptarnavimas","Atostogos","Telefonai","Pietūs"]
[null,":15",null,"Kasininkas","Apsauga","Pietūs","Klientų aptarnavimas","Atostogos","Telefonai","Pietūs"]
[null,":30",null,"Kasininkas","Apsauga","Vadovas","Klientų aptarnavimas","Atostogos","Telefonai","Uždaryti"]
[null,":45",null,"Kasininkas","Apsauga","Vadovas","Klientų aptarnavimas","Atostogos","Telefonai","Uždaryti"]
[null,"16:00",null,"Kasininkas","Apsauga","Vadovas","Klientų aptarnavimas","Atostogos","Pertrauka","Uždaryti"]
[null,":15",null,"Pertrauka","Apsauga","Vadovas","Pertrauka","Atostogos","Telefonai","Uždaryti"]
[null,":30",null,"Kasininkas","Apsauga","Vadovas","Klientų aptarnavimas","Atostogos","Telefonai","Uždaryti"]
[null,":45",null,"Kasininkas","Apsauga","Vadovas","Klientų aptarnavimas","Atostogos","Telefonai","Uždaryti"]
[null,"17:00",null,"Kasininkas","Apsauga","Vadovas","Klientų aptarnavimas",null,"Telefonai","Uždaryti"]
[null,":15",null,"Kasininkas","Apsauga","Vadovas","Klientų aptarnavimas",null,"Telefonai","Uždaryti"]
[null,":30",null,"Kasininkas","Apsauga","Vadovas","Klientų aptarnavimas",null,"Telefonai","Uždaryti"]
[null,":45",null,"Kasininkas","Apsauga","Vadovas","Klientų aptarnavimas",null,"Telefonai","Uždaryti"]
[null,"18:00",null,"Kasininkas","Apsauga","Vadovas","Klientų aptarnavimas",null,"Telefonai","Uždaryti"]
[null,":15",null,"Kasininkas","Apsauga","Vadovas","Klientų aptarnavimas",null,"Telefonai","Uždaryti"]
[null,":30",null,null,"Apsauga","Vadovas","Klientų aptarnavimas",null,"Telefonai","Uždaryti"]
[null,":45",null,null,"Apsauga","Pertrauka","Klientų aptarnavimas",null,"Telefonai","Pertrauka"]
[null,"19:00",{"$nulls":3},"Vadovas",null,null,"Telefonai","Uždaryti"]
[null,":15",{"$nulls":3},"Vadovas",null,null,"Telefonai","Uždaryti"]
[null,":30",{"$nulls":3},"Vadovas",{"$nulls":3},"Uždaryti"]
[null,":45",{"$nulls":3},"Vadovas",{"$nulls":3},"Uždaryti"]
[null,"20:00",{"$nulls":3},"Vadovas",{"$nulls":3},"Uždaryti"]
[null,":15",{"$nulls":3},"Vadovas"]
[null,":30",{"$nulls":3},"Vadovas"]
[null,":45"]
[null,"21:00"]
[]
[]
[]
[]
["Darbuotojų tvarkaraštis"]
[]
[null,"IŠ VISO",null,{"$f":"SUM(64:64)","v":{"v":56,"d":"56.00"}}]
[null,"VALANDŲ:",null,{"$f":"DarbuotojoDienosValandųSuma","v":8},8,8,8,8,8,8,{"v":0,"d":"0.00"},{"v":0,"d":"0.00"},{"v":0,"d":"0.00"},{"v":0,"d":"0.00"},{"v":0,"d":"0.00"},{"v":0,"d":"0.00"},{"v":0,"d":"0.00"},{"v":0,"d":"0.00"},{"v":0,"d":"0.00"},{"v":0,"d":"0.00"},{"v":0,"d":"0.00"}]
[null,"DARBUOTOJAS:",null,"Legota, A.","Alekna A.","Noreika G.","Gustas A.","Kanteris, T.","Dūda D.","Budrys J."]
[]
[null,{"$f":"B7+1","v":"2012-07-17T09:00:00"}]
[null,{"$f":"B67","v":41107.375},{"$nulls":5},"Atostogos"]
[null,{"$f":"LaikotarpiųRodymas","v":":15"},null,"Registratūra",{"$nulls":3},"Atostogos"]
[null,":30",null,"Registratūra",{"$nulls":3},"Atostogos"]
[null,":45",null,"Registratūra","Prižiūrėtojas",null,"Klientų aptarnavimas","Atostogos"]
[null,"1:00",null,"Registratūra","Prižiūrėtojas",null,"Klientų aptarnavimas","Atostogos"]
[null,":15",null,"Registratūra","Prižiūrėtojas",null,"Klientų aptarnavimas","Atostogos"]
[null,":30",null,"Registratūra","Prižiūrėtojas",null,"Klientų aptarnavimas","Atostogos","Apskaita"]
[null,":45",null,"Registratūra","Prižiūrėtojas",null,"Klientų aptarnavimas","Atostogos","Apskaita","Sargas"]
[null,"2:00",null,"Registratūra","Prižiūrėtojas",null,"Klientų aptarnavimas","Atostogos","Apskaita","Sargas"]
[null,":15",null,"Registratūra","Prižiūrėtojas","Vadovas","Klientų aptarnavimas","Atostogos","Apskaita","Sargas"]
[null,":30",null,"Registratūra","Pertrauka","Vadovas","Klientų aptarnavimas","Atostogos","Apskaita","Sargas"]
[null,":45",null,"Pietūs","Prižiūrėtojas","Vadovas","Klientų aptarnavimas","Atostogos","Apskaita","Sargas"]
[null,"3:00",null,"Pietūs","Prižiūrėtojas","Vadovas","Klientų aptarnavimas","Atostogos","Apskaita","Sargas"]
[null,":15",null,"Registratūra","Prižiūrėtojas","Vadovas","Klientų aptarnavimas","Atostogos","Pertrauka","Sargas"]
[null,":30",null,"Registratūra","Prižiūrėtojas","Pertrauka","Klientų aptarnavimas","Atostogos","Telefonai","Pertrauka"]
[null,":45",null,"Registratūra","Prižiūrėtojas","Vadovas","Klientų aptarnavimas","Atostogos","Telefonai","Sargas"]
[null,"4:00",null,"Registratūra","Prižiūrėtojas","Vadovas","Klientų aptarnavimas","Atostogos","Telefonai","Sargas"]
[null,":15",null,"Registratūra","Prižiūrėtojas","Vadovas","Pietūs","Atostogos","Telefonai","Sargas"]
[null,":30",null,null,"Prižiūrėtojas","Vadovas","Pietūs","Atostogos","Telefonai","Sargas"]
[null,":45",null,null,"Prižiūrėtojas","Vadovas","Pietūs","Atostogos","Pietūs","Sargas"]
[null,"5:00",null,"Kasininkas","Pietūs","Vadovas","Pietūs","Atostogos","Pietūs","Sargas"]
[null,":15",null,"Kasininkas","Pietūs","Vadovas","Klientų aptarnavimas","Atostogos","Telefonai","Sargas"]
[null,":30",null,"Kasininkas","Pietūs","Pietūs","Klientų aptarnavimas","Atostogos","Telefonai","Pietūs"]
[null,":45",null,"Kasininkas","Pietūs","Pietūs","Klientų aptarnavimas","Atostogos","Telefonai","Pietūs"]
[null,"6:00",null,"Kasininkas","Apsauga","Pietūs","Klientų aptarnavimas","Atostogos","Telefonai","Pietūs"]
[null,":15",null,"Kasininkas","Apsauga","Pietūs","Klientų aptarnavimas","Atostogos","Telefonai","Pietūs"]
[null,":30",null,"Kasininkas","Apsauga","Vadovas","Klientų aptarnavimas","Atostogos","Telefonai","Uždaryti"]
[null,":45",null,"Kasininkas","Apsauga","Vadovas","Klientų aptarnavimas","Atostogos","Telefonai","Uždaryti"]
[null,"7:00",null,"Kasininkas","Apsauga","Vadovas","Klientų aptarnavimas","Atostogos","Pertrauka","Uždaryti"]
[null,":15",null,"Pertrauka","Apsauga","Vadovas","Pertrauka","Atostogos","Telefonai","Uždaryti"]
[null,":30",null,"Kasininkas","Apsauga","Vadovas","Klientų aptarnavimas","Atostogos","Telefonai","Uždaryti"]
[null,":45",null,"Kasininkas","Apsauga","Vadovas","Klientų aptarnavimas","Atostogos","Telefonai","Uždaryti"]
[null,"8:00",null,"Kasininkas","Apsauga","Vadovas","Klientų aptarnavimas",null,"Telefonai","Uždaryti"]
[null,":15",null,"Kasininkas","Apsauga","Vadovas","Klientų aptarnavimas",null,"Telefonai","Uždaryti"]
[null,":30",null,"Kasininkas","Apsauga","Vadovas","Klientų aptarnavimas",null,"Telefonai","Uždaryti"]
[null,":45",null,"Kasininkas","Apsauga","Vadovas","Klientų aptarnavimas",null,"Telefonai","Uždaryti"]
[null,"9:00",null,"Kasininkas","Apsauga","Vadovas","Klientų aptarnavimas",null,"Telefonai","Uždaryti"]
[null,":15",null,"Kasininkas","Apsauga","Vadovas","Klientų aptarnavimas",null,"Telefonai","Uždaryti"]
[null,":30",null,null,"Apsauga","Vadovas","Klientų aptarnavimas",null,"Telefonai","Uždaryti"]
[null,":45",null,null,"Apsauga","Pertrauka","Klientų aptarnavimas",null,"Telefonai","Pertrauka"]
[null,"10:00",{"$nulls":3},"Vadovas",null,null,"Telefonai","Uždaryti"]
[null,":15",{"$nulls":3},"Vadovas",null,null,"Telefonai","Uždaryti"]
[null,":30",{"$nulls":3},"Vadovas",{"$nulls":3},"Uždaryti"]
[null,":45",{"$nulls":3},"Vadovas",{"$nulls":3},"Uždaryti"]
[null,"11:00",{"$nulls":3},"Vadovas",{"$nulls":3},"Uždaryti"]
[null,":15",{"$nulls":3},"Vadovas"]
[null,":30",{"$nulls":3},"Vadovas"]
[null,":45"]
[null,"12:00"]
[]
[]
[]
[]
["Darbuotojų tvarkaraštis"]
[]
[null,"IŠ VISO",null,{"$f":"SUM(124:124)","v":{"v":56,"d":"56.00"}}]
[null,"VALANDŲ:",null,{"$f":"DarbuotojoDienosValandųSuma","v":8},8,8,8,8,8,8,{"v":0,"d":"0.00"},{"v":0,"d":"0.00"},{"v":0,"d":"0.00"},{"v":0,"d":"0.00"},{"v":0,"d":"0.00"},{"v":0,"d":"0.00"},{"v":0,"d":"0.00"},{"v":0,"d":"0.00"},{"v":0,"d":"0.00"},{"v":0,"d":"0.00"},{"v":0,"d":"0.00"}]
[null,"DARBUOTOJAS:",null,"Legota, A.","Alekna A.","Noreika G.","Gustas A.","Kanteris, T.","Dūda D.","Budrys J."]
[]
[null,{"$f":"B67+1","v":"2012-07-18T09:00:00"}]
[null,{"$f":"B127","v":41108.375},{"$nulls":5},"Atostogos"]
[null,{"$f":"LaikotarpiųRodymas","v":":15"},null,"Registratūra",{"$nulls":3},"Atostogos"]
[null,":30",null,"Registratūra",{"$nulls":3},"Atostogos"]
[null,":45",null,"Registratūra","Prižiūrėtojas",null,"Klientų aptarnavimas","Atostogos"]
[null,"16:00",null,"Registratūra","Prižiūrėtojas",null,"Klientų aptarnavimas","Atostogos"]
[null,":15",null,"Registratūra","Prižiūrėtojas",null,"Klientų aptarnavimas","Atostogos"]
[null,":30",null,"Registratūra","Prižiūrėtojas",null,"Klientų aptarnavimas","Atostogos","Apskaita"]
[null,":45",null,"Registratūra","Prižiūrėtojas",null,"Klientų aptarnavimas","Atostogos","Apskaita","Sargas"]
[null,"17:00",null,"Registratūra","Prižiūrėtojas",null,"Klientų aptarnavimas","Atostogos","Apskaita","Sargas"]
[null,":15",null,"Registratūra","Prižiūrėtojas","Vadovas","Klientų aptarnavimas","Atostogos","Apskaita","Sargas"]
[null,":30",null,"Registratūra","Pertrauka","Vadovas","Klientų aptarnavimas","Atostogos","Apskaita","Sargas"]
[null,":45",null,"Pietūs","Prižiūrėtojas","Vadovas","Klientų aptarnavimas","Atostogos","Apskaita","Sargas"]
[null,"18:00",null,"Pietūs","Prižiūrėtojas","Vadovas","Klientų aptarnavimas","Atostogos","Apskaita","Sargas"]
[null,":15",null,"Registratūra","Prižiūrėtojas","Vadovas","Klientų aptarnavimas","Atostogos","Pertrauka","Sargas"]
[null,":30",null,"Registratūra","Prižiūrėtojas","Pertrauka","Klientų aptarnavimas","Atostogos","Telefonai","Pertrauka"]
[null,":45",null,"Registratūra","Prižiūrėtojas","Vadovas","Klientų aptarnavimas","Atostogos","Telefonai","Sargas"]
[null,"19:00",null,"Registratūra","Prižiūrėtojas","Vadovas","Klientų aptarnavimas","Atostogos","Telefonai","Sargas"]
[null,":15",null,"Registratūra","Prižiūrėtojas","Vadovas","Pietūs","Atostogos","Telefonai","Sargas"]
[null,":30",null,null,"Prižiūrėtojas","Vadovas","Pietūs","Atostogos","Telefonai","Sargas"]
[null,":45",null,null,"Prižiūrėtojas","Vadovas","Pietūs","Atostogos","Pietūs","Sargas"]
[null,"20:00",null,"Kasininkas","Pietūs","Vadovas","Pietūs","Atostogos","Pietūs","Sargas"]
[null,":15",null,"Kasininkas","Pietūs","Vadovas","Klientų aptarnavimas","Atostogos","Telefonai","Sargas"]
[null,":30",null,"Kasininkas","Pietūs","Pietūs","Klientų aptarnavimas","Atostogos","Telefonai","Pietūs"]
[null,":45",null,"Kasininkas","Pietūs","Pietūs","Klientų aptarnavimas","Atostogos","Telefonai","Pietūs"]
[null,"21:00",null,"Kasininkas","Apsauga","Pietūs","Klientų aptarnavimas","Atostogos","Telefonai","Pietūs"]
[null,":15",null,"Kasininkas","Apsauga","Pietūs","Klientų aptarnavimas","Atostogos","Telefonai","Pietūs"]
[null,":30",null,"Kasininkas","Apsauga","Vadovas","Klientų aptarnavimas","Atostogos","Telefonai","Uždaryti"]
[null,":45",null,"Kasininkas","Apsauga","Vadovas","Klientų aptarnavimas","Atostogos","Telefonai","Uždaryti"]
[null,"22:00",null,"Kasininkas","Apsauga","Vadovas","Klientų aptarnavimas","Atostogos","Pertrauka","Uždaryti"]
[null,":15",null,"Pertrauka","Apsauga","Vadovas","Pertrauka","Atostogos","Telefonai","Uždaryti"]
[null,":30",null,"Kasininkas","Apsauga","Vadovas","Klientų aptarnavimas","Atostogos","Telefonai","Uždaryti"]
[null,":45",null,"Kasininkas","Apsauga","Vadovas","Klientų aptarnavimas","Atostogos","Telefonai","Uždaryti"]
[null,"23:00",null,"Kasininkas","Apsauga","Vadovas","Klientų aptarnavimas",null,"Telefonai","Uždaryti"]
[null,":15",null,"Kasininkas","Apsauga","Vadovas","Klientų aptarnavimas",null,"Telefonai","Uždaryti"]
[null,":30",null,"Kasininkas","Apsauga","Vadovas","Klientų aptarnavimas",null,"Telefonai","Uždaryti"]
[null,":45",null,"Kasininkas","Apsauga","Vadovas","Klientų aptarnavimas",null,"Telefonai","Uždaryti"]
[null,"0:00",null,"Kasininkas","Apsauga","Vadovas","Klientų aptarnavimas",null,"Telefonai","Uždaryti"]
[null,":15",null,"Kasininkas","Apsauga","Vadovas","Klientų aptarnavimas",null,"Telefonai","Uždaryti"]
[null,":30",null,null,"Apsauga","Vadovas","Klientų aptarnavimas",null,"Telefonai","Uždaryti"]
[null,":45",null,null,"Apsauga","Pertrauka","Klientų aptarnavimas",null,"Telefonai","Pertrauka"]
[null,"1:00",{"$nulls":3},"Vadovas",null,null,"Telefonai","Uždaryti"]
[null,":15",{"$nulls":3},"Vadovas",null,null,"Telefonai","Uždaryti"]
[null,":30",{"$nulls":3},"Vadovas",{"$nulls":3},"Uždaryti"]
[null,":45",{"$nulls":3},"Vadovas",{"$nulls":3},"Uždaryti"]
[null,"2:00",{"$nulls":3},"Vadovas",{"$nulls":3},"Uždaryti"]
[null,":15",{"$nulls":3},"Vadovas"]
[null,":30",{"$nulls":3},"Vadovas"]
[null,":45"]
[null,"3:00"]
[]
[]
[]
[]
["Darbuotojų tvarkaraštis"]
[]
[null,"IŠ VISO",null,{"$f":"SUM(184:184)","v":{"v":56,"d":"56.00"}}]
[null,"VALANDŲ:",null,{"$f":"DarbuotojoDienosValandųSuma","v":8},8,8,8,8,8,8,{"v":0,"d":"0.00"},{"v":0,"d":"0.00"},{"v":0,"d":"0.00"},{"v":0,"d":"0.00"},{"v":0,"d":"0.00"},{"v":0,"d":"0.00"},{"v":0,"d":"0.00"},{"v":0,"d":"0.00"},{"v":0,"d":"0.00"},{"v":0,"d":"0.00"},{"v":0,"d":"0.00"}]
[null,"DARBUOTOJAS:",null,"Legota, A.","Alekna A.","Noreika G.","Gustas A.","Kanteris, T.","Dūda D.","Budrys J."]
[]
[null,{"$f":"B127+1","v":"2012-07-19T09:00:00"}]
[null,{"$f":"B187","v":41109.375},{"$nulls":5},"Atostogos"]
[null,{"$f":"LaikotarpiųRodymas","v":":15"},null,"Registratūra",{"$nulls":3},"Atostogos"]
[null,":30",null,"Registratūra",{"$nulls":3},"Atostogos"]
[null,":45",null,"Registratūra","Prižiūrėtojas",null,"Klientų aptarnavimas","Atostogos"]
[null,"7:00",null,"Registratūra","Prižiūrėtojas",null,"Klientų aptarnavimas","Atostogos"]
[null,":15",null,"Registratūra","Prižiūrėtojas",null,"Klientų aptarnavimas","Atostogos"]
[null,":30",null,"Registratūra","Prižiūrėtojas",null,"Klientų aptarnavimas","Atostogos","Apskaita"]
[null,":45",null,"Registratūra","Prižiūrėtojas",null,"Klientų aptarnavimas","Atostogos","Apskaita","Sargas"]
[null,"8:00",null,"Registratūra","Prižiūrėtojas",null,"Klientų aptarnavimas","Atostogos","Apskaita","Sargas"]
[null,":15",null,"Registratūra","Prižiūrėtojas","Vadovas","Klientų aptarnavimas","Atostogos","Apskaita","Sargas"]
[null,":30",null,"Registratūra","Pertrauka","Vadovas","Klientų aptarnavimas","Atostogos","Apskaita","Sargas"]
[null,":45",null,"Pietūs","Prižiūrėtojas","Vadovas","Klientų aptarnavimas","Atostogos","Apskaita","Sargas"]
[null,"9:00",null,"Pietūs","Prižiūrėtojas","Vadovas","Klientų aptarnavimas","Atostogos","Apskaita","Sargas"]
[null,":15",null,"Registratūra","Prižiūrėtojas","Vadovas","Klientų aptarnavimas","Atostogos","Pertrauka","Sargas"]
[null,":30",null,"Registratūra","Prižiūrėtojas","Pertrauka","Klientų aptarnavimas","Atostogos","Telefonai","Pertrauka"]
[null,":45",null,"Registratūra","Prižiūrėtojas","Vadovas","Klientų aptarnavimas","Atostogos","Telefonai","Sargas"]
[null,"10:00",null,"Registratūra","Prižiūrėtojas","Vadovas","Klientų aptarnavimas","Atostogos","Telefonai","Sargas"]
[null,":15",null,"Registratūra","Prižiūrėtojas","Vadovas","Pietūs","Atostogos","Telefonai","Sargas"]
[null,":30",null,null,"Prižiūrėtojas","Vadovas","Pietūs","Atostogos","Telefonai","Sargas"]
[null,":45",null,null,"Prižiūrėtojas","Vadovas","Pietūs","Atostogos","Pietūs","Sargas"]
[null,"11:00",null,"Kasininkas","Pietūs","Vadovas","Pietūs","Atostogos","Pietūs","Sargas"]
[null,":15",null,"Kasininkas","Pietūs","Vadovas","Klientų aptarnavimas","Atostogos","Telefonai","Sargas"]
[null,":30",null,"Kasininkas","Pietūs","Pietūs","Klientų aptarnavimas","Atostogos","Telefonai","Pietūs"]
[null,":45",null,"Kasininkas","Pietūs","Pietūs","Klientų aptarnavimas","Atostogos","Telefonai","Pietūs"]
[null,"12:00",null,"Kasininkas","Apsauga","Pietūs","Klientų aptarnavimas","Atostogos","Telefonai","Pietūs"]
[null,":15",null,"Kasininkas","Apsauga","Pietūs","Klientų aptarnavimas","Atostogos","Telefonai","Pietūs"]
[null,":30",null,"Kasininkas","Apsauga","Vadovas","Klientų aptarnavimas","Atostogos","Telefonai","Uždaryti"]
[null,":45",null,"Kasininkas","Apsauga","Vadovas","Klientų aptarnavimas","Atostogos","Telefonai","Uždaryti"]
[null,"13:00",null,"Kasininkas","Apsauga","Vadovas","Klientų aptarnavimas","Atostogos","Pertrauka","Uždaryti"]
[null,":15",null,"Pertrauka","Apsauga","Vadovas","Pertrauka","Atostogos","Telefonai","Uždaryti"]
[null,":30",null,"Kasininkas","Apsauga","Vadovas","Klientų aptarnavimas","Atostogos","Telefonai","Uždaryti"]
[null,":45",null,"Kasininkas","Apsauga","Vadovas","Klientų aptarnavimas","Atostogos","Telefonai","Uždaryti"]
[null,"14:00",null,"Kasininkas","Apsauga","Vadovas","Klientų aptarnavimas",null,"Telefonai","Uždaryti"]
[null,":15",null,"Kasininkas","Apsauga","Vadovas","Klientų aptarnavimas",null,"Telefonai","Uždaryti"]
[null,":30",null,"Kasininkas","Apsauga","Vadovas","Klientų aptarnavimas",null,"Telefonai","Uždaryti"]
[null,":45",null,"Kasininkas","Apsauga","Vadovas","Klientų aptarnavimas",null,"Telefonai","Uždaryti"]
[null,"15:00",null,"Kasininkas","Apsauga","Vadovas","Klientų aptarnavimas",null,"Telefonai","Uždaryti"]
[null,":15",null,"Kasininkas","Apsauga","Vadovas","Klientų aptarnavimas",null,"Telefonai","Uždaryti"]
[null,":30",null,null,"Apsauga","Vadovas","Klientų aptarnavimas",null,"Telefonai","Uždaryti"]
[null,":45",null,null,"Apsauga","Pertrauka","Klientų aptarnavimas",null,"Telefonai","Pertrauka"]
[null,"16:00",{"$nulls":3},"Vadovas",null,null,"Telefonai","Uždaryti"]
[null,":15",{"$nulls":3},"Vadovas",null,null,"Telefonai","Uždaryti"]
[null,":30",{"$nulls":3},"Vadovas",{"$nulls":3},"Uždaryti"]
[null,":45",{"$nulls":3},"Vadovas",{"$nulls":3},"Uždaryti"]
[null,"17:00",{"$nulls":3},"Vadovas",{"$nulls":3},"Uždaryti"]
[null,":15",{"$nulls":3},"Vadovas"]
[null,":30",{"$nulls":3},"Vadovas"]
[null,":45"]
[null,"18:00"]
[]
[]
[]
[]
["Darbuotojų tvarkaraštis"]
[]
[null,"IŠ VISO",null,{"$f":"SUM(244:244)","v":{"v":56,"d":"56.00"}}]
[null,"VALANDŲ:",null,{"$f":"DarbuotojoDienosValandųSuma","v":8},8,8,8,8,8,8,{"v":0,"d":"0.00"},{"v":0,"d":"0.00"},{"v":0,"d":"0.00"},{"v":0,"d":"0.00"},{"v":0,"d":"0.00"},{"v":0,"d":"0.00"},{"v":0,"d":"0.00"},{"v":0,"d":"0.00"},{"v":0,"d":"0.00"},{"v":0,"d":"0.00"},{"v":0,"d":"0.00"}]
[null,"DARBUOTOJAS:",null,"Legota, A.","Alekna A.","Noreika G.","Gustas A.","Kanteris, T.","Dūda D.","Budrys J."]
[]
[null,{"$f":"B187+1","v":"2012-07-20T09:00:00"}]
[null,{"$f":"B247","v":41110.375},{"$nulls":5},"Atostogos"]
[null,{"$f":"LaikotarpiųRodymas","v":":15"},null,"Registratūra",{"$nulls":3},"Atostogos"]
[null,":30",null,"Registratūra",{"$nulls":3},"Atostogos"]
[null,":45",null,"Registratūra","Prižiūrėtojas",null,"Klientų aptarnavimas","Atostogos"]
[null,"22:00",null,"Registratūra","Prižiūrėtojas",null,"Klientų aptarnavimas","Atostogos"]
[null,":15",null,"Registratūra","Prižiūrėtojas",null,"Klientų aptarnavimas","Atostogos"]
[null,":30",null,"Registratūra","Prižiūrėtojas",null,"Klientų aptarnavimas","Atostogos","Apskaita"]
[null,":45",null,"Registratūra","Prižiūrėtojas",null,"Klientų aptarnavimas","Atostogos","Apskaita","Sargas"]
[null,"23:00",null,"Registratūra","Prižiūrėtojas",null,"Klientų aptarnavimas","Atostogos","Apskaita","Sargas"]
[null,":15",null,"Registratūra","Prižiūrėtojas","Vadovas","Klientų aptarnavimas","Atostogos","Apskaita","Sargas"]
[null,":30",null,"Registratūra","Pertrauka","Vadovas","Klientų aptarnavimas","Atostogos","Apskaita","Sargas"]
[null,":45",null,"Pietūs","Prižiūrėtojas","Vadovas","Klientų aptarnavimas","Atostogos","Apskaita","Sargas"]
[null,"0:00",null,"Pietūs","Prižiūrėtojas","Vadovas","Klientų aptarnavimas","Atostogos","Apskaita","Sargas"]
[null,":15",null,"Registratūra","Prižiūrėtojas","Vadovas","Klientų aptarnavimas","Atostogos","Pertrauka","Sargas"]
[null,":30",null,"Registratūra","Prižiūrėtojas","Pertrauka","Klientų aptarnavimas","Atostogos","Telefonai","Pertrauka"]
[null,":45",null,"Registratūra","Prižiūrėtojas","Vadovas","Klientų aptarnavimas","Atostogos","Telefonai","Sargas"]
[null,"1:00",null,"Registratūra","Prižiūrėtojas","Vadovas","Klientų aptarnavimas","Atostogos","Telefonai","Sargas"]
[null,":15",null,"Registratūra","Prižiūrėtojas","Vadovas","Pietūs","Atostogos","Telefonai","Sargas"]
[null,":30",null,null,"Prižiūrėtojas","Vadovas","Pietūs","Atostogos","Telefonai","Sargas"]
[null,":45",null,null,"Prižiūrėtojas","Vadovas","Pietūs","Atostogos","Pietūs","Sargas"]
[null,"2:00",null,"Kasininkas","Pietūs","Vadovas","Pietūs","Atostogos","Pietūs","Sargas"]
[null,":15",null,"Kasininkas","Pietūs","Vadovas","Klientų aptarnavimas","Atostogos","Telefonai","Sargas"]
[null,":30",null,"Kasininkas","Pietūs","Pietūs","Klientų aptarnavimas","Atostogos","Telefonai","Pietūs"]
[null,":45",null,"Kasininkas","Pietūs","Pietūs","Klientų aptarnavimas","Atostogos","Telefonai","Pietūs"]
[null,"3:00",null,"Kasininkas","Apsauga","Pietūs","Klientų aptarnavimas","Atostogos","Telefonai","Pietūs"]
[null,":15",null,"Kasininkas","Apsauga","Pietūs","Klientų aptarnavimas","Atostogos","Telefonai","Pietūs"]
[null,":30",null,"Kasininkas","Apsauga","Vadovas","Klientų aptarnavimas","Atostogos","Telefonai","Uždaryti"]
[null,":45",null,"Kasininkas","Apsauga","Vadovas","Klientų aptarnavimas","Atostogos","Telefonai","Uždaryti"]
[null,"4:00",null,"Kasininkas","Apsauga","Vadovas","Klientų aptarnavimas","Atostogos","Pertrauka","Uždaryti"]
[null,":15",null,"Pertrauka","Apsauga","Vadovas","Pertrauka","Atostogos","Telefonai","Uždaryti"]
[null,":30",null,"Kasininkas","Apsauga","Vadovas","Klientų aptarnavimas","Atostogos","Telefonai","Uždaryti"]
[null,":45",null,"Kasininkas","Apsauga","Vadovas","Klientų aptarnavimas","Atostogos","Telefonai","Uždaryti"]
[null,"5:00",null,"Kasininkas","Apsauga","Vadovas","Klientų aptarnavimas",null,"Telefonai","Uždaryti"]
[null,":15",null,"Kasininkas","Apsauga","Vadovas","Klientų aptarnavimas",null,"Telefonai","Uždaryti"]
[null,":30",null,"Kasininkas","Apsauga","Vadovas","Klientų aptarnavimas",null,"Telefonai","Uždaryti"]
[null,":45",null,"Kasininkas","Apsauga","Vadovas","Klientų aptarnavimas",null,"Telefonai","Uždaryti"]
[null,"6:00",null,"Kasininkas","Apsauga","Vadovas","Klientų aptarnavimas",null,"Telefonai","Uždaryti"]
[null,":15",null,"Kasininkas","Apsauga","Vadovas","Klientų aptarnavimas",null,"Telefonai","Uždaryti"]
[null,":30",null,null,"Apsauga","Vadovas","Klientų aptarnavimas",null,"Telefonai","Uždaryti"]
[null,":45",null,null,"Apsauga","Pertrauka","Klientų aptarnavimas",null,"Telefonai","Pertrauka"]
[null,"7:00",{"$nulls":3},"Vadovas",null,null,"Telefonai","Uždaryti"]
[null,":15",{"$nulls":3},"Vadovas",null,null,"Telefonai","Uždaryti"]
[null,":30",{"$nulls":3},"Vadovas",{"$nulls":3},"Uždaryti"]
[null,":45",{"$nulls":3},"Vadovas",{"$nulls":3},"Uždaryti"]
[null,"8:00",{"$nulls":3},"Vadovas",{"$nulls":3},"Uždaryti"]
[null,":15",{"$nulls":3},"Vadovas"]
[null,":30",{"$nulls":3},"Vadovas"]
[null,":45"]
[null,"9:00"]

{"sheet":"Sąranka","index":1,"n_rows":26,"n_cols":7,"rows_kept":26}
[null,"Sąranka"]
[]
[]
[null,"PRIEMOKOS UŽ VALANDĄ ĮVESTIS",4]
[]
[]
[]
[]
[]
[null,"Darbuotojai",null,"Pareigos/laisvalaikis","Spalva","Apmokėta","Visa diena"]
[null,"Legota, A.",null,"Pietūs",1,false,false]
[null,"Kanteris, T.",null,"Pertrauka",1,false,false]
[null,"Dūda D.",null,"Išeiginė",1,false,true]
[null,"Gražulis R.",null,"Serga",1,false,true]
[null,"Alekna A.",null,"Diena asmeniniams reikalams",1,true,true]
[null,"Gustas A.",null,"Atostogos",1,true,true]
[null,"Budrys J.",null,"Registratūra",2,true,false]
[null,"Noreika G.",null,"Kasininkas",3,true,false]
[{"$nulls":3},"Prižiūrėtojas",4,true,false]
[{"$nulls":3},"Vadovas",5,true,false]
[{"$nulls":3},"Klientų aptarnavimas",6,true,false]
[{"$nulls":3},"Telefonai",7,true,false]
[{"$nulls":3},"Apsauga",8,true,false]
[{"$nulls":3},"Sargas",9,true,false]
[{"$nulls":3},"Apskaita",10,true,false]
[{"$nulls":3},"Uždaryti",11,true,false]